bitfinex/quotes_SOLUSD_20250901
["timestamp","ask_amount","ask_price","bid_price","bid_amount"]
[1756732268511,6.73385487,199.82,199.76,6.73385487]
[1756732268709,46.63385487,199.82,199.76,6.73385487]
[1756732268909,39.94,199.81,199.77,0.7]
[1756732269110,46.67385487,199.81,199.77,0.7]
[1756732269433,6.73385487,199.79,199.78,0.7]
[1756732269609,46.65385487,199.79,199.73,11.74061399]
[1756732269803,46.65385487,199.79,199.74,6.73385487]
[1756732270338,46.65385487,199.79,199.75,0.7]
[1756732270508,46.65385487,199.79,199.75,5.70622012]
[1756732270707,46.65385487,199.79,199.76,0.7]
[1756732270909,0.14216157,199.82,199.76,0.7]
[1756732271134,46.65385487,199.81,199.76,0.7]
[1756732271309,39.92,199.8,199.76,0.7]
[1756732271506,39.92,199.81,199.78,6.73385487]
[1756732271724,39.92,199.81,199.79,0.7]
[1756732272329,6.73385487,199.84,199.79,7.43385487]
[1756732272614,6.73385487,199.86,199.8,7.43385487]
[1756732272814,46.65385487,199.85,199.81,0.7]
[1756732273034,39.92,199.85,199.81,7.43385487]
[1756732273234,6.73385487,199.86,199.82,0.7]
[1756732273554,13.73775558,199.92,199.83,7.43385487]
[1756732273743,6.73385487,199.88,199.84,0.7]
[1756732273958,39.92,199.87,199.84,0.7]
[1756732274235,6.73385487,199.88,199.85,0.7]
[1756732274445,6.73385487,199.88,199.86,0.7]
[1756732274627,6.73385487,199.88,199.87,0.7]
[1756732274811,39.9,199.88,199.87,0.7]
[1756732275015,6.73385487,199.91,199.87,0.7]
[1756732275214,6.733855,199.95,199.87,7.43385487]
[1756732275459,6.73385487,199.93,199.88,7.43385487]
[1756732275747,6.73385487,199.95,199.89,7.43385487]
[1756732275916,39.92,199.92,199.89,7.43385487]
[1756732276113,6.73385487,199.95,199.9,7.43385487]
[1756732276332,36.02,199.98,199.92,5.0020008]
[1756732276536,6.73385487,199.99,199.93,7.43385487]
[1756732276764,39.92,199.98,199.94,0.7]
[1756732276972,6.73385487,199.99,199.94,7.43385487]
[1756732277240,6.73385487,199.99,199.92,5.0020008]
[1756732277241,39.92,199.99,199.95,7.43385487]
[1756732277459,26.0,199.96,199.91,0.7]
[1756732277648,6.73385487,199.94,199.89,0.7]
[1756732277990,4.99907596,200.04,199.89,0.7]
[1756732278276,15.028178,200.05,199.96,6.73385487]
[1756732278454,6.73385487,200.03,199.97,5.70074415]
[1756732278647,6.73385487,200.03,199.98,0.7]
[1756732278871,6.73385487,200.02,199.99,0.7]
[1756732279245,40.02,200.01,200.0,0.7]
[1756732279854,40.02,200.01,199.98,7.43385487]
[1756732280138,40.02,200.01,199.99,0.7]
[1756732280461,40.02,200.01,199.97,5.00074415]
[1756732280462,40.02,200.01,199.97,7.43385487]
[1756732280655,40.02,200.01,199.98,0.7]
[1756732280960,0.14216157,200.05,199.99,0.7]
[1756732281162,0.14216157,200.06,200.01,6.73385487]
[1756732281163,39.98,200.04,200.01,6.73385487]
[1756732281360,26.0,200.06,200.02,7.43385487]
[1756732281662,46.71385487,200.05,200.0,7.43385487]
[1756732281965,39.98,200.05,200.01,7.43385487]
[1756732282142,26.0,200.06,200.02,7.43385487]
[1756732282474,40.0,200.06,200.03,12.4328626]
[1756732282644,40.0,200.06,200.04,0.7]
[1756732282840,7.75257971,200.11,200.03,11.7328626]
[1756732282841,2.61313946,200.11,200.05,7.43385487]
[1756732283067,39.98,200.11,200.06,7.43385487]
[1756732283372,15.021406,200.14,200.03,4.99900773]
[1756732283373,6.73385487,200.13,200.08,6.73385487]
[1756732283549,0.14216157,200.13,200.09,0.7]
[1756732283866,6.73385487,200.15,200.1,7.43385487]
[1756732284066,6.73385487,200.15,200.08,0.7]
[1756732284067,6.73385487,200.14,200.08,0.7]
[1756732284272,6.73385487,200.11,200.06,0.7]
[1756732284565,6.73385487,200.08,200.02,0.7]
[1756732284763,6.73385487,200.07,200.01,6.73385487]
[1756732284953,6.73385487,200.07,200.02,7.43385487]
[1756732285154,6.73385487,200.07,200.03,0.7]
[1756732285562,40.02,200.08,200.03,0.7]
[1756732285864,32.73385487,200.09,200.04,0.7]
[1756732286070,32.73385487,200.09,200.04,6.73385487]
[1756732286071,40.0,200.08,200.04,6.73385487]
[1756732286265,40.0,200.08,199.98,39.59559401]
[1756732286266,6.73385487,200.07,200.01,6.73385487]
[1756732286465,6.73385487,200.02,199.96,0.7]
[1756732286676,6.73385487,200.0,199.96,0.7]
[1756732287766,6.73385487,199.99,199.93,0.7]
[1756732287960,6.73385487,199.99,199.86,19.24206218]
[1756732287961,6.73385487,199.97,199.86,12.50820718]
[1756732288266,6.73385487,199.97,199.92,0.7]
[1756732288476,6.73385487,199.97,199.93,0.7]
[1756732288656,46.85385487,199.98,199.94,0.7]
[1756732288856,40.12,199.98,199.94,6.73385487]
[1756732289061,40.12,199.98,199.95,0.7]
[1756732289376,6.73385487,200.0,199.96,0.7]
[1756732289551,6.73385487,200.0,199.94,6.73385487]
[1756732289972,46.83385487,200.01,199.95,7.43385487]
[1756732290267,6.73385487,200.02,199.97,6.73385487]
[1756732290566,40.12,200.03,199.99,5.00025001]
[1756732290747,6.73385487,200.05,200.0,0.7]
[1756732290938,6.73385487,200.05,200.0,7.43385487]
[1756732291143,0.03,200.01,200.0,7.43385487]
[1756732291871,0.03,200.01,199.96,6.73385487]
[1756732292048,0.03,200.01,199.92,0.12]
[1756732292049,26.0,199.99,199.92,0.12]
[1756732292248,6.73385487,199.93,199.92,0.12]
[1756732292454,40.48216157,199.93,199.92,0.12]
[1756732292669,47.21601644,199.93,199.92,0.12]
[1756732292850,52.21776705,199.93,199.92,0.12]
[1756732293255,0.61,199.96,199.92,0.12]
[1756732293447,26.0,199.93,199.92,0.12]
[1756732294271,26.14216157,199.97,199.92,0.82]
[1756732294579,26.0,199.96,199.94,6.73385487]
[1756732294873,0.03,200.01,199.95,7.43385487]
[1756732295074,0.03,200.01,199.98,6.73385487]
[1756732295075,40.39,200.01,199.98,6.73385487]
[1756732295267,40.39,200.01,199.97,6.73385487]
[1756732295672,41.0,200.01,199.96,6.73385487]
[1756732295868,47.73385487,200.01,199.96,6.73385487]
[1756732296104,41.0,200.01,199.97,6.73385487]
[1756732296265,40.39,200.01,199.97,6.73385487]
[1756732296763,0.17216157,200.01,199.97,6.73385487]
[1756732296965,40.35,200.01,199.98,6.73385487]
[1756732297279,26.0,199.98,199.92,0.12]
[1756732297481,26.0,199.98,199.93,6.73385487]
[1756732297482,26.0,199.96,199.93,6.73385487]
[1756732297859,14.34775558,199.95,199.92,0.12]
[1756732298158,20.47161045,199.93,199.92,0.12]
[1756732298362,60.81161045,199.93,199.92,0.12]
[1756732298668,66.70336106,199.93,199.92,0.12]
[1756732298868,26.08336106,199.93,199.92,0.12]
[1756732299079,5.75391218,199.93,199.92,0.12]
[1756732299378,52.47776705,199.93,199.92,0.12]
[1756732300080,0.14216157,199.93,199.92,0.12]
[1756732300296,2.61420181,199.96,199.92,0.12]
[1756732300455,40.6,199.97,199.93,6.73385487]
[1756732300989,26.0,199.98,199.94,7.43385487]
[1756732301170,40.62,199.98,199.95,6.73385487]
[1756732301367,6.73385487,200.0,199.95,6.73385487]
[1756732301685,18.62538853,200.01,199.98,6.73385487]
[1756732301686,40.62,199.99,199.98,6.73385487]
[1756732301861,40.62,199.99,199.97,6.73385487]
[1756732302055,40.62,199.99,199.96,10.85295784]
[1756732302481,40.62,199.99,199.97,10.15295784]
[1756732303079,0.03,200.01,199.97,0.7]
[1756732303387,0.03,200.01,199.99,10.15295784]
[1756732303689,0.03,200.01,199.98,10.15295784]
[1756732303987,0.03,200.01,199.97,10.15295784]
[1756732304191,0.03,200.01,199.98,10.15295784]
[1756732304992,0.03,200.01,199.97,10.15295784]
[1756732305787,0.03,200.01,199.97,10.85295784]
[1756732305984,0.03,200.01,199.97,10.15295784]
[1756732306772,0.03,200.01,199.98,10.85295784]
[1756732306984,0.03,200.01,200.0,10.15295784]
[1756732307367,0.03,200.01,200.0,10.85295784]
[1756732308895,0.03,200.01,200.0,15.85295784]
[1756732309092,0.03,200.01,200.0,10.85295784]
[1756732309975,0.03,200.04,200.0,15.85295784]
[1756732310177,0.03,200.04,200.03,10.15295784]
[1756732310386,0.03,200.06,200.03,10.15295784]
[1756732310697,0.03,200.06,200.05,10.15295784]
[1756732310881,0.03,200.06,200.05,15.85170815]
[1756732314799,1e-08,200.06,200.05,39.60026]
[1756732315886,1e-08,200.06,200.05,65.60026]
[1756732316074,1e-08,200.06,200.05,45.29434432]
[1756732316397,1e-08,200.06,200.05,65.60026]
[1756732317185,1e-08,200.06,200.05,106.00026]
[1756732317386,1e-08,200.06,200.05,105.98026]
[1756732317784,1e-08,200.06,200.05,80.12242157]
[1756732318886,134.56,200.2,200.06,10.15295784]
[1756732319208,0.66,200.19,200.15,10.15295784]
[1756732319370,0.66,200.18,200.15,10.15295784]
[1756732319573,0.66,200.17,200.14,10.15295784]
[1756732320600,0.66,200.17,200.15,10.15295784]
[1756732320995,0.66,200.17,200.14,10.15295784]
[1756732321376,144.05295784,200.2,200.14,10.15295784]
[1756732321578,0.66,200.19,200.15,10.15295784]
[1756732321787,0.66,200.18,200.15,10.15295784]
[1756732321981,145.6112961,200.2,200.15,6.71622238]
[1756732322206,0.66,200.17,200.14,6.71622238]
[1756732322797,0.66,200.19,200.14,6.71622238]
[1756732323110,133.9,200.2,200.17,6.71622238]
[1756732323284,133.9,200.2,200.15,0.7]
[1756732323476,0.66,200.19,200.16,6.71622238]
[1756732323701,140.61622238,200.2,200.15,6.71622238]
[1756732324202,133.9,200.2,200.15,6.71622238]
[1756732324422,26.2,200.22,200.17,6.71622238]
[1756732324699,0.2,200.22,200.17,6.71622238]
[1756732324905,0.66,200.21,200.17,6.71622238]
[1756732325817,0.2,200.22,200.15,5.69601707]
[1756732326129,0.2,200.22,200.17,6.71622238]
[1756732326807,0.2,200.22,200.17,11.71184042]
[1756732326985,0.86,200.22,200.17,6.71622238]
[1756732327299,5.85456245,200.22,200.17,6.71622238]
[1756732327495,0.03,200.2,200.17,6.71622238]
[1756732327698,0.03,200.2,200.18,6.71622238]
[1756732328493,0.03,200.2,200.19,6.71622238]
[1756732328891,0.03,200.2,200.19,12.40147688]
[1756732330690,0.03,200.2,200.19,7.40622238]
[1756732330889,0.03,200.2,200.15,0.69]
[1756732331100,0.03,200.2,200.17,6.71622238]
[1756732331410,0.03,200.2,200.18,6.71622238]
[1756732332105,0.69,200.2,200.16,6.71622238]
[1756732332303,0.66,200.19,200.14,6.71622238]
[1756732332488,0.66,200.19,200.15,6.71622238]
[1756732332689,7.37622238,200.19,200.14,6.71622238]
[1756732332883,0.66,200.18,200.14,6.71622238]
[1756732333084,0.66,200.18,200.13,11.71297449]
[1756732333285,0.66,200.18,200.13,12.40297449]
[1756732334092,6.71622238,200.16,200.1,0.69]
[1756732334289,6.71622238,200.16,200.11,6.71622238]
[1756732334493,7.37622238,200.17,200.11,0.69]
[1756732334707,7.37622238,200.17,200.09,26.0]
[1756732335014,4.99560361,200.18,200.11,6.71622238]
[1756732335213,6.71622238,200.17,200.12,6.71622238]
[1756732335400,7.37622238,200.17,200.12,6.71622238]
[1756732335600,32.71622238,200.15,200.1,6.71622238]
[1756732335798,26.0,200.15,200.11,0.69]
[1756732335999,26.0,200.15,200.11,12.40335177]
[1756732337918,26.0,200.15,200.11,0.69]
[1756732338119,6.71622238,200.13,200.07,6.71622238]
[1756732338619,6.71622238,200.12,200.07,6.71622238]
[1756732338789,6.71622238,200.12,200.06,5.11844148]
[1756732338998,6.71622238,200.09,200.06,0.12]
[1756732339190,6.71622238,200.08,200.06,0.12]
[1756732341040,7.37622238,200.07,200.06,0.12]
[1756732341715,61.17397796,200.07,200.06,0.12]
[1756732343013,66.17222857,200.07,200.06,0.12]
[1756732343417,32.71622238,200.07,200.06,0.12]
[1756732343591,26.0,200.07,200.06,0.12]
[1756732343794,40.39775558,200.07,200.06,0.12]
[1756732343996,47.11397796,200.07,200.06,0.12]
[1756732344401,87.17397796,200.07,200.06,0.12]
[1756732345017,92.17222857,200.07,200.06,0.12]
[1756732346826,39.59559401,200.02,200.01,0.12]
[1756732346996,91.493478,200.02,200.01,0.12]
[1756732347199,92.153478,200.02,200.01,0.12]
[1756732347621,52.113478,200.02,200.01,0.12]
[1756732348123,92.193478,200.02,200.01,0.12]
[1756732348522,39.59559401,199.97,199.92,0.12]
[1756732348823,134.04216157,200.01,199.92,0.12]
[1756732348824,32.71622238,199.93,199.92,0.12]
[1756732349006,77.94013456,199.93,199.92,0.12]
[1756732349214,78.60013456,199.93,199.92,0.12]
[1756732349411,92.19572857,199.93,199.92,0.12]
[1756732350526,91.53572857,199.93,199.92,0.12]
[1756732352302,92.19572857,199.93,199.92,0.12]
[1756732352708,52.11572857,199.93,199.92,0.12]
[1756732352939,92.15572857,199.93,199.92,0.12]
[1756732353433,85.43950619,199.93,199.92,0.12]
[1756732353636,92.15572857,199.93,199.92,0.12]
[1756732354223,98.87195095,199.93,199.92,1e-08]
[1756732354431,98.85195095,199.93,199.92,1e-08]
[1756732354639,98.85195095,199.93,199.9,1e-08]
[1756732354640,20.45397796,199.91,199.9,1e-08]
[1756732355023,60.49397796,199.91,199.9,1e-08]
[1756732355337,61.15397796,199.91,199.9,1e-08]
[1756732355533,21.11397796,199.91,199.9,1e-08]
[1756732355743,60.49397796,199.91,199.9,1e-08]
[1756732356225,66.15622897,199.91,199.9,1e-08]
[1756732356539,65.49622897,199.91,199.9,1e-08]
[1756732357130,25.45622897,199.91,199.9,1e-08]
[1756732357339,40.02,199.92,199.9,0.70000001]
[1756732357533,46.73622238,199.92,199.9,0.70000001]
[1756732357851,66.1,199.91,199.9,1e-08]
[1756732358352,66.1,199.91,199.9,0.70000001]
[1756732358550,26.0,199.91,199.9,0.70000001]
[1756732358752,2.6138509,199.97,199.9,7.41622239]
[1756732359054,40.1,199.96,199.93,6.71622238]
[1756732359221,13.59559401,199.99,199.94,0.7]
[1756732359222,40.12,199.95,199.94,0.7]
[1756732359620,20.31181639,200.0,199.94,7.41622238]
[1756732359847,25.3119021,200.0,199.95,0.7]
[1756732360144,40.12,199.99,199.94,6.71622238]
[1756732360444,0.14216157,199.99,199.96,11.71721651]
[1756732360645,40.12,199.98,199.97,0.7]
[1756732361215,0.14216157,199.99,199.97,0.7]
[1756732361417,0.14216157,199.99,199.98,0.7]
[1756732361617,40.24216157,199.99,199.98,0.7]
[1756732362233,40.24216157,199.99,199.96,0.7]
[1756732362560,40.24216157,199.99,199.97,0.7]
[1756732362865,30.99983183,200.01,199.95,6.71622238]
[1756732362866,32.71622238,200.01,199.98,0.7]
[1756732363026,46.91838395,200.0,199.96,0.7]
[1756732363222,32.71622238,199.97,199.93,0.7]
[1756732363430,46.79622238,199.96,199.93,0.7]
[1756732363840,26.0,199.97,199.94,0.7]
[1756732364030,20.45397796,199.99,199.95,0.7]
[1756732364340,6.71622238,199.98,199.93,0.7]
[1756732364549,77.77680835,199.98,199.94,0.7]
[1756732364724,26.0,199.96,199.95,0.7]
[1756732365044,26.0,199.96,199.93,6.71622238]
[1756732365045,0.14216157,199.95,199.92,0.82]
[1756732365245,6.85838395,199.95,199.92,0.12]
[1756732365448,40.06,199.95,199.93,7.41622238]
[1756732365650,40.06,199.95,199.94,0.7]
[1756732365951,40.06,199.96,199.94,0.7]
[1756732366154,40.06,199.96,199.95,0.7]
[1756732366929,40.06,199.96,199.93,7.41622238]
[1756732367146,40.06,199.96,199.92,6.83622238]
[1756732367348,40.06,199.96,199.93,0.7]
[1756732367727,40.06,199.96,199.94,0.7]
[1756732368150,40.06,199.96,199.95,0.7]
[1756732368533,133.9,199.97,199.95,7.41622238]
[1756732368732,0.03,200.01,199.96,11.71722258]
[1756732368920,0.03,200.01,199.97,0.7]
[1756732369125,0.03,200.01,199.99,6.71622238]
[1756732369525,0.03,200.01,200.0,0.7]
[1756732369956,0.03,200.01,200.0,7.41622238]
[1756732370163,0.03,200.01,199.92,0.12]
[1756732370321,0.03,200.01,199.93,5.70175061]
[1756732370527,40.04,200.0,199.94,0.7]
[1756732370833,6.71622238,199.99,199.94,12.41748533]
[1756732371049,6.71622238,199.99,199.95,0.7]
[1756732371331,40.02,199.98,199.96,0.7]
[1756732371537,40.02,199.98,199.94,11.71748533]
[1756732371838,40.02,199.98,199.97,0.7]
[1756732372038,6.71622238,200.0,199.97,0.7]
[1756732372244,6.71622238,200.0,199.95,0.7]
[1756732372245,40.02,199.99,199.95,0.7]
[1756732372431,40.02,199.99,199.96,0.7]
[1756732373235,45.02036686,199.99,199.92,0.12]
[1756732373436,45.02036686,199.99,199.93,7.41622238]
[1756732373656,40.02,199.99,199.93,7.41622238]
[1756732373838,40.02,199.99,199.92,5.12176699]
[1756732373839,40.02,199.99,199.94,7.41622238]
[1756732374044,40.02,199.99,199.96,6.71622238]
[1756732374354,40.02,199.99,199.96,0.7]
[1756732374748,40.02,199.99,199.95,11.71738292]
[1756732375054,40.02,199.99,199.96,0.7]
[1756732376952,6.71622238,199.98,199.94,0.7]
[1756732377548,46.63622238,199.98,199.94,0.7]
[1756732377861,6.71622238,199.97,199.92,0.12]
[1756732378162,6.71622238,199.96,199.92,0.12]
[1756732378459,46.63622238,199.95,199.92,0.12]
[1756732379244,39.92,199.95,199.92,0.82]
[1756732379471,39.92,199.95,199.92,0.12]
[1756732379772,0.14216157,199.96,199.93,0.7]
[1756732379952,65.9,199.98,199.94,7.41622238]
[1756732380151,39.9,199.98,199.95,0.7]
[1756732380837,39.9,199.98,199.94,6.71622238]
[1756732380838,26.0,199.97,199.96,0.7]
[1756732381240,26.0,199.97,199.94,6.71622238]
[1756732381440,26.0,199.97,199.92,5.12190875]
[1756732381671,26.0,199.97,199.92,6.83622238]
[1756732381866,26.0,199.97,199.93,0.7]
[1756732382943,26.0,199.97,199.94,5.70143713]
[1756732383145,65.92,199.97,199.94,0.7]
[1756732383347,0.03,199.96,199.94,0.7]
[1756732383547,0.03,199.96,199.94,5.70140106]
[1756732384271,0.03,199.96,199.94,0.7]
[1756732384463,0.03,199.96,199.93,11.71793307]
[1756732384645,0.03,199.96,199.93,12.41793307]
[1756732385151,0.03,199.96,199.93,11.71793307]
[1756732385355,0.03,199.96,199.93,12.41793307]
[1756732385546,0.03,199.96,199.94,7.41622238]
[1756732385762,0.03,199.96,199.95,6.71622238]
[1756732386064,0.03,200.01,199.97,6.71622238]
[1756732386239,0.03,200.01,200.0,6.71622238]
[1756732386654,0.03,200.01,200.0,7.41622238]
[1756732387062,0.03,200.01,200.0,5.7]
[1756732387362,0.03,200.01,200.0,12.41622238]
[1756732388844,0.03,200.01,200.0,7.41622238]
[1756732389568,0.03,200.01,200.0,6.71622238]
[1756732389776,0.03,200.01,199.99,6.71622238]
[1756732390187,0.03,200.01,199.99,7.41622238]
[1756732390778,0.03,200.01,199.99,12.41645381]
[1756732391164,0.03,200.01,200.0,7.41622238]
[1756732392397,0.03,200.01,199.99,6.71622238]
[1756732392690,0.03,200.01,199.99,7.41622238]
[1756732393070,0.03,200.01,199.98,6.71622238]
[1756732393686,0.03,200.01,199.99,6.71622238]
[1756732394363,0.03,200.01,199.99,7.41622238]
[1756732394570,0.03,200.01,199.96,0.7]
[1756732394769,0.03,200.01,199.98,6.71622238]
[1756732395273,0.03,200.01,199.98,7.41622238]
[1756732395864,0.03,200.01,199.97,6.71622238]
[1756732396061,0.03,200.01,199.95,7.41622238]
[1756732396062,6.88838395,200.01,199.95,7.41622238]
[1756732396266,6.71622238,199.99,199.93,6.71622238]
[1756732396681,46.51622238,199.99,199.93,6.71622238]
[1756732397080,46.51622238,199.99,199.92,0.12]
[1756732397081,6.71622238,199.96,199.92,0.12]
[1756732397280,6.71622238,199.95,199.92,0.12]
[1756732397787,6.71622238,199.93,199.92,0.12]
[1756732397980,25.45572857,199.93,199.92,0.12]
[1756732398287,26.14572857,199.93,199.92,0.12]
[1756732398492,20.45397796,199.93,199.92,0.12]
[1756732398697,25.45572857,199.93,199.92,0.12]
[1756732398871,26.14572857,199.93,199.92,0.12]
[1756732399193,65.94572857,199.93,199.92,0.12]
[1756732399368,6.71622238,199.93,199.92,0.12]
[1756732399573,39.8,199.93,199.92,0.12]
[1756732399966,6.71622238,199.94,199.92,0.12]
[1756732400182,46.51622238,199.94,199.92,0.12]
[1756732400586,6.71622238,199.93,199.92,0.12]
[1756732400793,21.14397796,199.93,199.92,0.12]
[1756732401965,65.25572857,199.93,199.92,0.12]
[1756732402160,65.94572857,199.93,199.92,0.12]
[1756732402363,46.63838395,199.93,199.92,0.12]
[1756732402664,6.85838395,199.93,199.92,0.12]
[1756732402866,65.96572857,199.93,199.92,0.12]
[1756732406284,59.24950619,199.93,199.92,0.12]
[1756732406596,65.96572857,199.93,199.92,0.12]
[1756732407503,26.14572857,199.93,199.92,0.12]
[1756732407671,65.92572857,199.93,199.92,0.12]
[1756732408895,26.14572857,199.93,199.92,0.12]
[1756732409090,60.19397796,199.93,199.92,0.12]
[1756732409292,65.19572857,199.93,199.92,0.12]
[1756732409483,60.19397796,199.93,199.92,0.12]
[1756732409689,65.19572857,199.93,199.92,0.12]
[1756732410104,17.94811255,199.93,199.92,0.12]
[1756732410305,30.21035697,199.93,199.92,0.82]
[1756732410479,65.72,199.93,199.92,0.82]
[1756732410684,69.93035697,199.93,199.92,0.12]
[1756732411098,84.35811255,199.93,199.92,0.12]
[1756732411303,89.35986316,199.93,199.92,0.12]
[1756732411981,49.63986316,199.93,199.92,0.12]
[1756732412182,89.39986316,199.93,199.92,0.12]
[1756732413510,49.63986316,199.93,199.92,0.12]
[1756732413806,69.97035697,199.93,199.92,0.82]
[1756732414008,70.11251854,199.93,199.92,0.82]
[1756732414181,69.97035697,199.93,199.92,0.82]
[1756732414494,70.11251854,199.93,199.92,0.82]
[1756732414899,75.11426915,199.93,199.92,0.12]
[1756732415099,4.35251854,199.93,199.92,0.12]
[1756732415306,70.11251854,199.93,199.92,0.12]
[1756732415504,75.11426915,199.93,199.92,0.12]
[1756732416387,30.21035697,199.93,199.92,0.83]
[1756732416589,69.93035697,199.93,199.92,0.12]
[1756732416803,69.93035697,199.93,199.92,0.83]
[1756732417011,69.93035697,199.93,199.92,0.12]
[1756732417312,75.07426915,199.93,199.92,0.12]
[1756732418720,88.66986316,199.93,199.92,0.12]
[1756732419217,63.33986316,199.93,199.92,0.12]
[1756732419715,62.66986316,199.93,199.92,0.12]
[1756732420900,18.73950619,199.93,199.92,0.12]
[1756732421102,62.66986316,199.93,199.92,0.12]
[1756732421515,4.35251854,199.93,199.92,0.12]
[1756732421822,44.84391218,199.93,199.92,0.83]
[1756732421999,49.05426915,199.93,199.92,0.83]
[1756732422201,49.05426915,199.93,199.92,0.12]
[1756732422398,9.35426915,199.93,199.92,0.12]
[1756732422619,26.0,199.96,199.92,0.83]
[1756732422801,0.03,199.97,199.93,4.21035697]
[1756732423216,39.73,199.97,199.94,0.71]
[1756732423596,43.94035697,199.97,199.94,0.71]
[1756732423816,43.94035697,199.97,199.92,4.33035697]
[1756732424009,4.21035697,199.95,199.93,0.71]
[1756732424211,39.72,199.94,199.93,0.71]
[1756732424802,5.03084239,199.97,199.94,5.00150045]
[1756732424803,0.03,199.97,199.94,5.00150045]
[1756732425002,0.03,199.97,199.96,4.21035697]
[1756732425302,0.03,199.97,199.95,4.92035697]
[1756732425615,0.03,199.97,199.96,0.71]
[1756732425818,0.03,199.97,199.93,4.21035697]
[1756732426120,39.84,199.96,199.94,0.71]
[1756732426300,39.84,199.96,199.95,0.71]
[1756732427813,44.05035697,199.96,199.92,0.83]
[1756732428009,44.05035697,199.96,199.92,0.12]
[1756732428200,44.05035697,199.96,199.93,0.71]
[1756732428525,39.84,199.96,199.94,0.71]
[1756732430407,30.24035697,199.97,199.94,0.71]
[1756732430408,0.03,199.97,199.95,0.71]
[1756732430726,39.81,199.97,199.96,0.71]
[1756732431238,39.81,199.97,199.94,0.71]
[1756732431423,39.81,199.97,199.95,0.71]
[1756732431944,4.21035697,199.96,199.92,0.83]
[1756732432109,39.8,199.95,199.93,0.71]
[1756732432312,26.17216157,199.97,199.94,0.71]
[1756732432625,39.8,199.96,199.95,0.71]
[1756732432828,0.03,199.97,199.96,0.71]
[1756732433137,0.03,199.97,199.96,4.92035697]
[1756732434028,0.03,199.97,199.96,9.92135717]
[1756732435305,0.03,199.97,199.96,5.7110002]
[1756732435533,0.03,199.97,199.96,0.71]
[1756732436236,0.03,199.97,199.96,4.92035697]
[1756732436436,0.03,199.97,199.96,9.92135717]
[1756732436808,0.03,199.97,199.96,4.92035697]
[1756732437020,0.03,199.97,199.96,0.71]
[1756732437325,0.03,199.97,199.96,5.7110002]
[1756732437718,0.03,199.97,199.96,9.92135717]
[1756732439728,0.03,199.97,199.96,0.71]
[1756732439928,0.03,199.97,199.96,4.92035697]
[1756732440235,0.03,199.99,199.96,9.92135717]
[1756732440532,0.03,200.04,199.98,4.21035697]
[1756732440743,0.03,200.04,199.97,0.71]
[1756732440925,0.03,200.04,200.01,4.21035697]
[1756732441103,0.03,200.04,200.02,8.65478764]
[1756732441303,0.03,200.04,200.03,3.73443067]
[1756732441531,0.03,200.04,200.03,4.44443067]
[1756732441710,0.03,200.04,200.03,3.73443067]
[1756732441909,0.03,200.04,200.03,4.44355128]
[1756732442426,0.03,200.04,200.03,3.73355128]
[1756732443109,0.03,200.04,200.03,4.44355128]
[1756732445620,0.03,200.04,200.03,3.73355128]
[1756732445815,44.70035697,200.04,200.03,3.73355128]
[1756732446151,63.43711274,200.04,200.03,3.73355128]
[1756732452447,26.0,200.01,199.97,0.68]
[1756732452633,43.91035697,200.0,199.98,3.729285]
[1756732452829,43.91035697,200.0,199.97,0.68]
[1756732452830,43.91035697,200.0,199.99,3.729285]
[1756732453435,39.7,200.0,199.99,3.729285]